Cogmind - Beta 11 @@@ ROGUE MODE // 2022.04.06 @ 00:45:41 Player: Azken Zutik Result: Destroyed by H-55 Commando with Gauss Rifle Performance ------------- Evolutions (0) 0 Regions Visited (3) 600 Robots Destroyed (103) 515 Value Destroyed (1732) 1732 Prototype IDs (25) 500 Alien Tech Used (0) 0 Bonus (1420) 1420 TOTAL SCORE: 4767 Bonus ------- High Alert Combat Kills 401 Follower Combat Kills 719 Aligned with FarCom 300 Cogmind --------- Core Integrity 0/250 Matter 300/300 Energy 100/100 System Corruption 0% Temperature Cool (0) Movement Core (100) Ox1 Location -10/Exiles Parts ------- > --- POWER (1) -------- (None) > --- PROPULSION (2) --- (None) > --- UTILITY (2) ------ (None) > --- WEAPON (2) ------- Gauss Rifle > --- INVENTORY (5) ---- Medium Matter Pod (100) Medium Matter Pod (100) Seismic Detector Datajack Mining Claw Peak State ------------ > --- POWER ------------ Micro Nuclear Core > --- PROPULSION ------- Gravmag System Gravmag System > --- UTILITY ---------- High-capacity Storage Unit Core Shielding > --- WEAPON ----------- Assault Rifle Field Lobotomy Kit > --- INVENTORY -------- Ion Engine Small Battery Medium Matter Pod Medium Matter Pod Large Matter Pod High-capacity Matter Pod Seismic Detector 0b10 Alert Chip Assault Rifle Light Assault Rifle Light Assault Rifle Datajack Datajack Mining Laser Mining Claw Mining Claw [Rating: 27] Favorites ----------- Power Light Ion Engine Engine Light Ion Engine Power Core Micro Nuclear Core Propulsion Light Treads Treads Light Treads Leg Carbon-fiber Leg Hover Unit Gravmag System Utility Light Armor Plating Device Seismic Detector Storage High-capacity Storage Unit Protection Light Armor Plating Weapon Assault Rifle Energy Gun Medium Laser Ballistic Gun Assault Rifle Special Weapon Mining Laser Slashing Weapon Mining Claw Build | -11 -10 -10 -10 ------- Run | Scr Mat Min Exi Slots Evolved . | . . . . Power . | . . . . Propulsion . | . . . . Utility . | . . . . Weapon . | . . . . Parts Attached 60 | 9 34 . 17 Power 7 | 1 5 . 1 Engine 6 | 1 5 . . Core 1 | . . . 1 Reactor . | . . . . Propulsion 10 | 2 4 . 4 Treads 6 | 2 4 . . Leg 2 | . . . 2 Wheel . | . . . . Hover 2 | . . . 2 Flight . | . . . . Utility 14 | 4 7 . 3 Device 3 | 2 . . 1 Storage 4 | 2 2 . . Processor . | . . . . Hackware . | . . . . Protection 7 | . 5 . 2 Artifact . | . . . . Weapon 29 | 2 18 . 9 Energy Gun 3 | 1 2 . . Energy Cannon . | . . . . Ballistic Gun 17 | 1 9 . 7 Ballistic Cannon . | . . . . Launcher . | . . . . Special Weapon 6 | . 4 . 2 Impact Weapon . | . . . . Slashing Weapon 3 | . 3 . . Piercing Weapon . | . . . . Special Melee Weapon . | . . . . Unidentified Prototypes . | . . . . Parts Lost 15 | . 2 . 13 Power 2 | . 1 . 1 Propulsion 2 | . . . 2 Utility 5 | . 1 . 4 Weapon 6 | . . . 6 Highest Loss Streak 9 | . 1 . 9 To Critical Strikes . | . . . . Average Slot Usage (%) 97 | . 99 100 85 Engine 13 | . 13 14 12 Treads 26 | . 28 28 19 Storage 13 | . 14 14 13 Protection 13 | . 13 14 13 Energy Gun 5 | . 7 . . Ballistic Gun 13 | . 12 28 18 Special Weapon 5 | . 6 . 3 Slashing Weapon 1 | . 2 . . Naked Turns 1 | . . . 1 Heaviest Build 57 | 13 52 47 57 Greatest Support 40 | 40 40 40 40 Greatest Overweight (x) 5 | 3 1 1 5 Average Overweight (x) . | . . 1 1 Largest Inventory Capacity 20 | 8 20 20 20 Average Capacity 15 | 7 14 20 19 Most Carried 20 | 5 20 20 20 Average Carried 13 | 1 13 20 17 Final Capacity 20 | 8 20 20 20 Final Carried 20 | 5 20 20 18 Class Distribution -------------------- 99% | Mutant Dominant Class ---------------- Mutant | -10/Materials Mutant | -10/Mines Mutant | -10/Exiles Resources | -11 -10 -10 -10 ----------- Run | Scr Mat Min Exi Matter Collected 3011 | 489 2233 16 273 Remotely . | . . . . Salvage Created 3406 | 292 2947 46 121 Parts 263 | 31 219 4 9 Haulers Intercepted 2 | . 2 . . Recyclers Shooed 7 | . 7 . . Parts Field Recycled . | . . . . Retrieved Matter . | . . . . Parts Self-Destructed . | . . . . Prevented . | . . . . Kills | -11 -10 -10 -10 ------- Run | Scr Mat Min Exi Combat Hostiles Destroyed 40 | . 34 3 3 Guns 40 | . 34 3 3 Classes Destroyed 10 | 3 6 . 1 Worker 25 | 4 21 . . Builder 20 | . 20 . . Tunneler 11 | 9 2 . . Hauler 2 | . 2 . . Recycler 9 | 1 8 . . Operator 3 | . 3 . . Watcher 3 | . 3 . . Swarmer 6 | . 3 3 . Grunt 33 | . 31 . 2 Hunter 1 | . . . 1 Best Kill Streak 6 | 4 6 3 2 Combat Bots Only 4 | . 4 3 2 Max Kills in Single Turn 2 | 1 2 1 1 Gunslinging . | . . . . Exploded . | . . . . Melee . | . . . . Uniques/NPCs Destroyed . | . . . . Combat | -11 -10 -10 -10 -------- Run | Scr Mat Min Exi Damage Taken 1969 | . 1204 108 657 Core 263 | . 130 16 117 Absorbed by Shields . | . . . . Redirected to Shielding 19 | . . 3 16 Regen/Repaired (Parts) 103 | . 103 . . Core Remaining (%) 100 | 100 . . . Volleys Fired 361 | 26 297 8 30 Largest 2 | 2 2 2 2 Hottest 150 | 70 150 40 48 Shots Fired 691 | 51 576 16 48 Gun 671 | 51 561 16 43 Cannon . | . . . . Launcher . | . . . . Special 20 | . 15 . 5 Kinetic 607 | 26 522 16 43 Thermal 79 | 25 54 . . Explosive . | . . . . Electromagnetic . | . . . . Robot Hit Streak 27 | 12 27 5 7 Robot Miss Streak 5 | 2 5 3 4 Penetration Max . | . . . . Secondary Targets 4 | . 2 2 . Max Gunslinging Chain 1 | . 1 1 . Shots Hit Robots 377 | 30 307 7 33 Core Hits 158 | 15 131 4 8 Critical Kills 3 | . 2 1 . Critical Parts Destroyed 5 | . 4 . 1 Critical Strikes 13 | 4 7 1 1 Burn 5 | 4 1 . . Destroy 8 | . 6 1 1 Melee Attacks 22 | . 22 . . Impact . | . . . . Slashing 22 | . 22 . . Piercing . | . . . . Sneak Attacks . | . . . . Combat Hostiles . | . . . . Follow-up Attacks . | . . . . Damage Inflicted 4901 | 371 4099 76 355 Guns 4682 | 371 3880 76 355 Cannons . | . . . . Explosions 217 | . 217 . . Melee . | . . . . Ramming 2 | . 2 . . Kinetic 4141 | 159 3551 76 355 Thermal 672 | 212 460 . . Explosive . | . . . . Electromagnetic 86 | . 86 . . Impact . | . . . . Slashing . | . . . . Piercing . | . . . . Highest Corruption . | . . . . Average Corruption . | . . . . Corruption Purged . | . . . . Corruption Blocked . | . . . . Overload Shots . | . . . . Overflow Damage . | . . . . Projectiles . | . . . . Explosions . | . . . . Melee . | . . . . Knockbacks . | . . . . Impact . | . . . . Kinetic . | . . . . Secondary . | . . . . Self-Inflicted Damage 38 | . 38 . . Shots 1 | . 1 . . Rammed 2 | . 1 1 . Targets Rammed 2 | . 1 1 . Kicked . | . . . . Crushed . | . . . . Highest Temperature 276 | . 276 . 57 Average Temperature 33 | . 35 . 18 Received Heat Transfer 645 | . 591 . 54 Siege Activations . | . . . . Robots Corrupted . | . . . . Combat Hostiles . | . . . . Parts Fried . | . . . . Impact Corruptions . | . . . . Robots Melted . | . . . . Combat Hostiles . | . . . . Parts Melted 2 | 2 . . . Heat Transferred 2111 | 925 1186 . . Parts Sabotaged . | . . . . Parts Stolen . | . . . . Parts Stripped . | . . . . Power Chain Reactions . | . . . . Missiles Intercepted . | . . . . Alert | -11 -10 -10 -10 ------- Run | Scr Mat Min Exi Peak Influence 1254 | 70 1254 280 . Initial 210 | . . 210 . Average 357 | 32 380 258 . Maximum Alert Level 4 | . 4 1 . Low Security (%) 54 | 100 53 . . Level 1 4 | . 1 100 . Level 2 14 | . 15 . . Level 3 21 | . 23 . . Level 4 4 | . 5 . . Level 5 . | . . . . High Security . | . . . . Max Security . | . . . . Squads Dispatched 12 | . 12 . . Investigation 10 | . 10 . . Extermination . | . . . . Reinforcement 2 | . 2 . . Assault . | . . . . Garrison . | . . . . Intercept . | . . . . Searches Triggered . | . . . . Construction Impeded . | . . . . Haulers Reinforced . | . . . . Active Scanning Responses . | . . . . Cargo Convoy Interrupts . | . . . . Stealth | -11 -10 -10 -10 --------- Run | Scr Mat Min Exi Distress Signals . | . . . . Communications Jammed . | . . . . Distress Signals . | . . . . Times Spotted 62 | . 44 3 15 Peak Tracking Total 4 | . 3 3 4 Tactical Retreats . | . . . . Traps | -11 -10 -10 -10 ------- Run | Scr Mat Min Exi Traps Triggered 3 | . 3 . . Indirectly . | . . . . Trap Hack Attempts . | . . . . Triggered . | . . . . Disarmed . | . . . . Reprogrammed . | . . . . Reused . | . . . . Traps Extracted . | . . . . Installed . | . . . . Triggered . | . . . . Exploded 1 | . . . 1 Machines | -11 -10 -10 -10 ---------- Run | Scr Mat Min Exi Machines Disabled 40 | . 38 . 2 Max in Single Turn 5 | . 5 . 1 Machines Sabotaged 1 | . 1 . . Garrisons Compromised . | . . . . Overloaded Fab Kills . | . . . . Hacking | -11 -10 -10 -10 --------- Run | Scr Mat Min Exi Machines Accessed 10 | . 8 . 2 Terminals 6 | . 6 . . Fabricators . | . . . . Repair Stations 1 | . 1 . . Recycling Units 1 | . 1 . . Scanalyzers . | . . . . Garrison Access . | . . . . Total Hacks 23 | . 21 . 2 Successful 16 | . 14 . 2 Failed 7 | . 7 . . Catastrophic 1 | . 1 . . Database Lockouts . | . . . . Manual 11 | . 10 . 1 Terminals 14 | . 14 . . Fabricators . | . . . . Repair Stations 5 | . 5 . . Recycling Units 2 | . 2 . . Scanalyzers . | . . . . Garrison Access . | . . . . Terminal Hacks 5 | . 3 . 2 Record 1 | . . . 1 Robot Analysis 1 | . 1 . . Prototype ID Bank 1 | . 1 . . Zone Layout 1 | . 1 . . EX-Prototype ID Bank 1 | . . . 1 Fabricator Hacks . | . . . . Repair Station Hacks 3 | . 3 . . Scan Component 2 | . 2 . . Repair 1 | . 1 . . Recycling Unit Hacks 1 | . 1 . . Retrieve Components 1 | . 1 . . Scanalyzer . | . . . . Garrison Access Hacks . | . . . . Unauthorized Hacks 7 | . 7 . . Terminals 6 | . 6 . . Sabotage 6 | . 6 . . Fabricators . | . . . . Repair Stations . | . . . . Recycling Units 1 | . 1 . . Tunnel 1 | . 1 . . Scanalyzers . | . . . . Garrison Access . | . . . . Data Cores Recovered 1 | . 1 . . Used . | . . . . Hacking Detections 6 | . 6 . . Full Trace Events 1 | . 1 . . Feedback Events . | . . . . Feedback Blocked . | . . . . Robot Schematics Acquired . | . . . . Robots Built . | . . . . Authchips . | . . . . Time . | . . . . Total Robot Build Rating . | . . . . Part Schematics Acquired . | . . . . Parts Built . | . . . . Authchips . | . . . . Time . | . . . . Total Part Build Rating . | . . . . Parts Repaired 1 | . 1 . . Time 26 | . 26 . . Parts Recycled . | . . . . Recycled Matter . | . . . . Retrieved Matter . | . . . . Retrieved Components 10 | . 10 . . Parts Scanalyzed . | . . . . Part Schematics Acquired . | . . . . Parts Damaged . | . . . . Bothacking | -11 -10 -10 -10 ------------ Run | Scr Mat Min Exi Used RIF Installer . | . . . . Robots Hacked . | . . . . Non-combat . | . . . . Combat . | . . . . Robot Hacks Applied . | . . . . Relay Couplers Released . | . . . . Fabnet Peak Effective % . | . . . . Robots Rewired . | . . . . Allies Hacked . | . . . . Hacks Repelled . | . . . . Allies | -11 -10 -10 -10 -------- Run | Scr Mat Min Exi Total Allies 5 | . . . 5 Largest Group 1 | . . . 1 Highest-Rated Group 37 | . . . 37 Highest-Rated Ally 37 | . . . 37 Total Orders . | . . . . Ally Attacks 91 | . . . 91 Total Damage 4399 | . . . 4399 Kills 40 | . . . 40 Allies Corrupted . | . . . . Allies Melted . | . . . . Turrets Deployed 3 | . . . 3 Field Lobotomies 5 | . . . 5 Intel | -11 -10 -10 -10 ------- Run | Scr Mat Min Exi Robot Analysis Total 1 | . 1 . . Derelict Logs Recovered 1 | . . 1 . Drone Launches . | . . . . Drone Recoveries . | . . . . Exploration | -11 -10 -10 -10 ------------- Run | Scr Mat Min Exi Turns Passed 12174 | 552 9201 324 2097 Spaces Moved 2253 | 192 1515 121 425 Core 126 | 62 . . 64 Treads 2088 | 130 1515 121 322 Legs 21 | . . . 21 Wheels . | . . . . Hover 18 | . . . 18 Flight . | . . . . Fastest Speed 50 | 50 160 240 50 Average Speed 222 | 143 230 240 226 Slowest Speed 360 | 200 240 240 360 Overloaded Moves . | . . . . Propulsion Burnouts . | . . . . Robots Hopped . | . . . . Cave-ins Triggered . | . . . . Exploration Rate (%) 45 | 4 98 18 61 Regions Visited 3 Branch Regions 2 Pre-discovered Areas 2 | . 1 . 1 Known Exits Taken . | . . . . Unknown Exits Taken 3 | 1 1 1 . Scrap Searched . | . . . . Spaces Dug 5 | . 5 . . Terrain Destroyed 79 | . 79 . . Melee . | . . . . Projectile 5 | . 5 . . AOE 74 | . 74 . . Terrain Rammed . | . . . . Walls Destroyed . | . . . . Machines Disabled . | . . . . Actions | -11 -10 -10 -10 --------- Run | Scr Mat Min Exi Total 8651 | 415 6586 140 1510 Wait 5893 | 181 4681 11 1020 Move 2250 | 191 1514 120 425 Hop . | . . . . Pick Up 35 | 6 23 . 6 Fast Attach 20 | 8 6 . 6 Attach 11 | 1 4 . 6 Detach 2 | . 1 . 1 Swap 29 | . 24 . 5 Drop 26 | 2 13 . 11 Fire 361 | 26 297 8 30 Melee 22 | . 22 . . Ram . | . . . . Kick . | . . . . Crush 2 | . 1 1 . Escape Stasis . | . . . . Rewire . | . . . . Trap . | . . . . Miscellaneous . | . . . . Route ------- -11/Scrapyard -10/Materials (discovered 5 exits: [*Mat x3] / [*Min x2]) -10/Mines -10/Exiles (discovered 1 exit: [*Min]) History --------- Turn | Location | Event 5 | -11/Scrapyard | Discovered new exit (range 16) 553 | -11/Scrapyard | Entered Materials 554 | -10/Materials | Build established: Mutant 5300 | -10/Materials | Discovered new exit (range 13) 6631 | -10/Materials | Discovered new exit (range 13) 7129 | -10/Materials | Repaired Lgt. Treads 7219 | -10/Materials | Discovered new exit (range 4) 7514 | -10/Materials | Discovered new exit (range 14) 7902 | -10/Materials | Discovered new exit (range 13) 9373 | -10/Materials | Core integrity fell below 50% 9754 | -10/Materials | Entered Mines 9818 | -10/Mines | Learned Materials terminal intel 9992 | -10/Mines | Deemed a non-threat by the Exiles lab entrance 10013 | -10/Mines | Discovered new exit (range 5) 10078 | -10/Mines | Entered Exiles 10167 | -10/Exiles | Met 8R-AWN 10213 | -10/Exiles | Met EX-HEX 10311 | -10/Exiles | Met EX-BIN 10352 | -10/Exiles | Aligned with FarCom system 10354 | -10/Exiles | Given EX-Vault access code 10431 | -10/Exiles | Opened EX-Vault 10453 | -10/Exiles | Found Field Lobotomy Kit 10464 | -10/Exiles | Found Deploy-a-Sentry 10467 | -10/Exiles | Found Deploy-a-Sentry 10470 | -10/Exiles | Found Deploy-a-Sentry 10476 | -10/Exiles | Found 0b10 Alert Chip 10528 | -10/Exiles | Warned to stay clear of 0b10 Research branches 10536 | -10/Exiles | Exiles lab attacked by MAIN.C 10609 | -10/Exiles | Learned location of Zion (-6) 10659 | -10/Exiles | DAS Turret deployed 10662 | -10/Exiles | DAS Turret deployed 10665 | -10/Exiles | DAS Turret deployed 11079 | -10/Exiles | Assimilated H-55 Commando with FLK Orb 11115 | -10/Exiles | Assimilated H-55 Commando with FLK Orb 11126 | -10/Exiles | Assimilated P-60 Hacker with FLK Orb 11134 | -10/Exiles | Discovered new exit (range 15) 11920 | -10/Exiles | Assimilated B-36 Bruiser with FLK Orb 11942 | -10/Exiles | Assimilated H-55 Commando with FLK Orb 11982 | -10/Exiles | Core integrity fell below 20% 12099 | -10/Exiles | Released all parts (5) 12130 | -10/Exiles | Lost 9 parts (1p4u4w) 12175 | -10/Exiles | Destroyed by H-55 Commando with Gauss Rifle Last Messages --------------- 12099_ Mining Claw crushed and broken. 12099_ Ion Engine crushed and broken. 12099_ Core Shielding crushed and broken. 12099_ Mining Laser crushed and broken. 12099_ Released Assault Rifle. 12099_ Assault Rifle crushed and broken. 12099_ Released Carbon-fiber Leg. 12099_ Carbon-fiber Leg crushed and broken. 12099_ Released Aluminum Leg. 12099_ Aluminum Leg crushed and broken. 12099_ Released Lgt. Armor Plating. 12099_ Lgt. Armor Plating crushed and broken. 12100_ Acquired Gauss Rifle. 12122_ Slug penetrates L-31 Rogue. 12131_ Slug penetrates Wall. 12165_ Acquired 26 matter. 12166_ Acquired 4 matter. 12170_ Slug penetrates L-31 Rogue. 12172_ Acquired 4 matter. 12175_ Penetrated by Slug. Map ----- +----------------------------------------------------+ | ?????????????????????????????????????????????????? | | ?????????????????????????????????????????????????# | | ????????????????????????????????????????????????"" | | ??#####?????????????????????????????????????????"" | | ?## ##???????????????????????????????????????#"" | | ?# #???????????????????????????????????????#" | | ?# < #???????????????????????????????????????#" | | ?# ###?????????????????????????????????????#"" | | ?# #?????????????????????????????????????##" | | ?# ##???????????????????????????????????????? | | ?## #????????????????????????????????????????? | | ??# ##???????????????????????????????????????? | | ??## #????????????#######????????????????????? | | ???# #######??????#!!! "#????????????????????? | | ???# #""##?????# "#????????????????????? | | ???## #?????# "#????????????????????? | | ????##" ##???##% ""#????????????##??????? | | ????#"" ##### % ""#???????????? """???? | | ????#### ## %""#????????????" """#??? | | ???????## # ###????????????" ???? | | ????????#"## [%#????????????"" ???? | | ????????####### [*;##???????????"" "???? | | ??????????????### !*![%##?????????? ""???? | | ????????########" =!!%=%%#???????????" "????? | | ????????# !!""""" * !!* %%%/##??????????# #????? | | ????????#! =[ %!###"=@%!%=######???### ###?## | | ????????#! * #?##"=*l|=%%*%"#####X# #"###" | | ????????#! ##??#"%%%%*!%!%%=%= """"" | | ????????# !""" ###???#"#%[%%%%!%=%=/=g "" "" | | ????????##########?????####%%![%%!%[%= " " | | ??????????????????????????##=!%%!*==%* | | ???????????????????????????####%=%%%*% | | ??????????????????????????????##[=%=[%[ | | ???????????????????????????????##=%!%! | | ????????????????????????????????##%%[= | | ?????????????????????????????????#"" | | ?????????????????????????????????#" | | ?????????????????????????????????"" " | | ?????????????????????????????????""" """ | | ?????????????????????????????????"" """# | | ??????????????????????????????????" ""# | | ?????????????????????????????????? ?? | | ??????????????????????????????????" ?? | | ???????????????????????????????????? ?? | | ??????????????????????????????????????? ?? | | ????????????????????????????????????????? ??? | | ?????????????????????????????????????????????????? | | ?????????????????????????????????????????????????? | | ?????????????????????????????????????????????????? | | ?????????????????????????????????????????????????? | +----------------------------------------------------+ Best States ------------- Heat Dissipation 25 Energy Generation 15 Energy Capacity 250 Matter Stores 300 Matter Capacity 300 Sight Range 16 Terrain Scan Range 16 Terrain Scan Density 10 Armor Coverage 150 Core Shielding 20 Evasion (%) 50 Recoil Reduction 2 Item Schematics ----------------- None Robot Schematics ------------------ None Fabricated ------------ Nothing Alien Tech Used ----------------- None Achievements -------------- None Challenges ------------ None Game ------ Seed BattleAbsorptionWell Manual? 0 Play Time 00:37:28 Cumulative 268.5 hours Start 2022.04.06 @ 00:08:09 End 2022.04.06 @ 00:45:41 Sessions 1 Manual Loads 0 Difficulty Rogue Special Mode None Game No. 77 Rogue 77 Adventurer 0 Explorer 0 Win Type - Total 6 Types 3/1/0/0/2/0/0/0/0 Lore% 58 Gallery% 71 Achievement% 65 Wizard Run 0 Options --------- ASCII 0 Keyboard 0 Movement Arrows Keybinds 0 Fullscreen 0 Font 28/SmallcapsGlow Map View 72x54 Tactical HUD 1 Map Filters NONE Filters NONE Steam 1 RUN: 0d91241e-f21b-4357-8e99-6f9066c553b3